[Event "GER-ch Youth-U12 2022"]
[Site "Willingen"]
[Date "2022.06.08"]
[Round "6.9"]
[White "Schuricht, Emil Frederick"]
[Black "Mandalka, Justus"]
[Result "1-0"]
[ECO "D34"]
[WhiteElo "1641"]
[BlackElo "1402"]
[Annotator "NA RC COMBH"]
[PlyCount "115"]
[EventDate "2022.06.05"]
[EventType "swiss"]
[EventRounds "9"]
[EventCountry "GER"]
[SourceTitle "playchess.com"]
[Source "ChessBase"]
[SourceQuality "1"]
[TimeControl "40/4500+30:900+30"]

1. d4 {[%emt 0:00:00]} d5 {[%emt 0:00:00]} 2. c4 {[%emt 0:00:00]} e6 {[%emt 0:00:00]} 3. Nc3 {[%emt 0:00:00]} c5 {[%emt 0:00:00]} 4. cxd5 {[%emt 0:00:00]} exd5 {[%emt 0:00:00]} 5. Nf3 {[%emt 0:00:00]} Nc6 {[%emt 0:00:00]} 6. g3 {[%emt 0:00:00]} Nf6 {[%emt 0:00:00]} 7. Bg2 {[%emt 0:00:00]} Be7 {[%emt 0:00:00]} 8. Bg5 {[%emt 0:00:00]} cxd4 {[%emt 0:00:00]} 9. Nxd4 {[%emt 0:00:00]} h6 {[%emt 0:00:00]} 10. Be3 {[%emt 0:00:00]} O-O {[%emt 0:00:00]} 11. O-O {[%emt 0:00:00]} Re8 {[%emt 0:00:00]} 12. Rc1 {[%emt 0:00:00]} Bf8 {[%emt 0:00:00]} 13. Nxc6 {[%emt 0:00:00]} bxc6 {[%emt 0:00:00]} 14. Na4 {[%emt 0:00:00]} Bd7 {[%emt 0:00:00]} 15. Bc5 {[%emt 0:00:00]} Bxc5 {[%emt 0:00:00]} 16. Nxc5 {[%emt 0:00:00]} Bg4 {[%emt 0:00:00]} 17. Re1 {[%emt 0:00:00]} Rb8 {[%emt 0:00:00]} 18. h3 {[%emt 0:00:00]} Bh5 {[%emt 0:00:00]} 19. Qd2 {[%emt 0:00:00]} Qb6 {[%emt 0:00:00]} 20. Rc2 {[%emt 0:00:00]} Bg6 {[%emt 0:00:00]} 21. Nd3 {[%emt 0:00:00]} Ne4 {[%emt 0:00:00]} 22. Qc1 {[%emt 0:08:36]} Rbc8 {[%emt 0:01:16]} 23. Nc5 {[%emt 0:04:14]} Nxc5 {[%emt 0:03:39]} 24. Rxc5 {[%emt 0:00:08]} Qa6 {[%emt 0:00:38]} 25. e3 {[%emt 0:02:11]} Qxa2 {[%emt 0:10:43]} 26. Bxd5 {[%emt 0:09:08]} Qa6 {[%emt 0:03:15]} 27. Rxc6 {[%emt 0:07:46]} Rxc6 {[%emt 0:00:09]} 28. Qxc6 {[%emt 0:00:04]} Qxc6 {[%emt 0:00:04]} 29. Bxc6 {[%emt 0:00:06]} Rc8 {[%emt 0:00:10]} 30. Bf3 {[%emt 0:00:06]} Rc2 {[%emt 0:01:15]} 31. Re2 {[%emt 0:00:11]} Rc5 {[%emt 0:01:01]} 32. b3 {[%emt 0:06:40]} Bf5 {[%emt 0:02:13]} 33. Ra2 {[%emt 0:17:30]} a5 {[%emt 0:01:46]} 34. Kg2 {[%emt 0:00:44]} Be6 {[%emt 0:01:10]} 35. Bd1 {[%emt 0:16:44]} f6 {[%emt 0:03:27]} 36. e4 {[%emt 0:04:02]} Kf7 {[%emt 0:00:58]} 37. f4 {[%emt 0:01:38]} Rb5 {[%emt 0:04:10]} 38. Ra3 {[%emt 0:00:27]} Ke7 {[%emt 0:00:54]} 39. Kf3 {[%emt 0:06:42]} Rc5 {[%emt 0:07:03]} 40. Ke3 {[%emt 0:04:12]} Bxh3 {[%emt 0:05:37]} 41. Kd4 {[%emt 0:18:41]} Rb5 {[%emt 0:15:26]} 42. Be2 {[%emt 0:00:00]} Rb4+ {[%emt 0:00:00]} 43. Bc4 {[%emt 0:00:00]} Be6 {[%emt 0:00:00]} 44. Rxa5 {[%emt 0:00:00]} Bxc4 {[%emt 0:00:00]} 45. bxc4 {[%emt 0:00:00]} Rb1 {[%emt 0:00:00]} 46. Kd5 {[%emt 0:00:00]} Rd1+ {[%emt 0:00:00]} 47. Kc6 {[%emt 0:00:00]} Rd4 {[%emt 0:00:00]} 48. c5 {[%emt 0:00:00]} Rxe4 {[%emt 0:00:00]} 49. Ra7+ {[%emt 0:00:00]} Kf8 {[%emt 0:00:00]} 50. Kd5 {[%emt 0:00:00]} Re1 {[%emt 0:00:00]} 51. c6 {[%emt 0:00:00]} Rc1 {[%emt 0:00:00]} 52. c7 {[%emt 0:00:00]} Ke8 {[%emt 0:00:00]} 53. Kd6 {[%emt 0:00:00]} Rd1+ {[%emt 0:00:00]} 54. Kc6 {[%emt 0:00:00]} Rc1+ {[%emt 0:00:00]} 55. Kb7 {[%emt 0:00:00]} Rb1+ {[%emt 0:00:00]} 56. Kc8 {[%emt 0:00:00]} Rb4 {[%emt 0:00:00]} 57. Rb7 {[%emt 0:00:00]} Rc4 {[%emt 0:00:00]} 58. Kb8 {[%emt 0:00:00]} 1-0

[Event "GER-ch Youth-U12 2022"]
[Site "Willingen"]
[Date "2022.06.08"]
[Round "6.10"]
[White "Martin Fernandez, Rafael"]
[Black "Polzin, Gustav"]
[Result "0-1"]
[ECO "A05"]
[WhiteElo "1678"]
[BlackElo "1643"]
[Annotator "NA RC COMBH"]
[PlyCount "56"]
[EventDate "2022.06.05"]
[EventType "swiss"]
[EventRounds "9"]
[EventCountry "GER"]
[SourceTitle "playchess.com"]
[Source "ChessBase"]
[SourceQuality "1"]
[TimeControl "40/4500+30:900+30"]

1. b3 {[%emt 0:00:00]} b6 {[%emt 0:00:48]} 2. Bb2 {[%emt 0:00:00]} Bb7 {[%emt 0:00:00]} 3. e3 {[%emt 0:00:00]} Nf6 {[%emt 0:00:00]} 4. Nf3 {[%emt 0:00:00]} d6 {[%emt 0:00:00]} 5. c4 {[%emt 0:00:00]} e5 {[%emt 0:00:00]} 6. d4 {[%emt 0:00:00]} e4 {[%emt 0:00:00]} 7. Nfd2 {[%emt 0:00:00]} Be7 {[%emt 0:00:00]} 8. Nc3 {[%emt 0:00:00]} O-O {[%emt 0:02:35]} 9. d5 {[%emt 0:00:02]} Nbd7 {[%emt 0:00:55]} 10. Ndxe4 {[%emt 0:01:33]} Nxe4 {[%emt 0:00:06]} 11. Nxe4 {[%emt 0:00:12]} f5 {[%emt 0:00:09]} 12. Nd2 {[%emt 0:02:45]} f4 {[%emt 0:01:24]} 13. exf4 {[%emt 0:02:32]} Rxf4 {[%emt 0:01:25]} 14. g3 {[%emt 0:03:37]} Rf7 {[%emt 0:02:12]} 15. Bh3 {[%emt 0:01:23]} Nc5 {[%emt 0:00:21]} 16. Qc2 {[%emt 0:01:49]} Bf6 {[%emt 0:01:37]} 17. O-O {[%emt 0:02:08]} Bc8 {[%emt 0:00:27]} 18. Bxf6 {[%emt 0:02:33]} Qxf6 {[%emt 0:02:10]} 19. Bxc8 {[%emt 0:00:34]} Rxc8 {[%emt 0:00:31]} 20. Rfe1 {[%emt 0:02:28]} Qxf2+ {[%emt 0:01:30]} 21. Kh1 {[%emt 0:00:06]} Qd4 {[%emt 0:01:59]} 22. Rf1 {[%emt 0:10:55]} Rcf8 {[%emt 0:03:05]} 23. Rae1 {[%emt 0:04:06]} Rf2 {[%emt 0:14:40]} 24. Rxf2 {[%emt 0:01:04]} Rxf2 {[%emt 0:01:52]} 25. Rd1 {[%emt 0:08:06]} Qe3 {[%emt 0:04:25]} 26. Qc1 {[%emt 0:05:41]} Ne4 {[%emt 0:00:51]} 27. Re1 {[%emt 0:02:17]} Nxg3+ {[%emt 0:00:33]} 28. Kg1 {[%emt 0:00:38]} Re2# {[%emt 0:00:07]} 0-1

[Event "GER-ch Youth-U12 2022"]
[Site "Willingen"]
[Date "2022.06.08"]
[Round "6.11"]
[White "Wartenberg, Alexander"]
[Black "Riechenberg, Sebastian"]
[Result "1-0"]
[ECO "C47"]
[WhiteElo "1682"]
[BlackElo "1668"]
[Annotator "NA RC COMBH"]
[PlyCount "95"]
[EventDate "2022.06.05"]
[EventType "swiss"]
[EventRounds "9"]
[EventCountry "GER"]
[SourceTitle "playchess.com"]
[Source "ChessBase"]
[SourceQuality "1"]
[TimeControl "40/4500+30:900+30"]

1. e4 {[%emt 0:00:00]} e5 {[%emt 0:00:00]} 2. Nf3 {[%emt 0:00:00]} Nc6 {[%emt 0:00:00]} 3. d4 {[%emt 0:00:00]} exd4 {[%emt 0:00:00]} 4. Nxd4 {[%emt 0:00:00]} Nf6 {[%emt 0:00:00]} 5. Nc3 {[%emt 0:00:00]} Bb4 {[%emt 0:00:00]} 6. Nxc6 {[%emt 0:00:00]} bxc6 {[%emt 0:00:00]} 7. Bd3 {[%emt 0:00:00]} d5 {[%emt 0:00:00]} 8. exd5 {[%emt 0:00:00]} cxd5 {[%emt 0:00:00]} 9. O-O {[%emt 0:00:00]} O-O {[%emt 0:00:00]} 10. Bg5 {[%emt 0:00:00]} c6 {[%emt 0:00:00]} 11. Qf3 {[%emt 0:00:00]} h6 {[%emt 0:00:00]} 12. Bxf6 {[%emt 0:00:00]} Qxf6 {[%emt 0:00:00]} 13. Qxf6 {[%emt 0:00:00]} gxf6 {[%emt 0:00:00]} 14. Ne2 {[%emt 0:00:00]} Rb8 {[%emt 0:00:00]} 15. Nd4 {[%emt 0:00:00]} Bc5 {[%emt 0:00:00]} 16. Nxc6 {[%emt 0:00:00]} Rxb2 {[%emt 0:00:00]} 17. Rfb1 {[%emt 0:02:04]} Rb6 {[%emt 0:00:00]} 18. Rxb6 {[%emt 0:02:21]} axb6 {[%emt 0:00:00]} 19. c3 {[%emt 0:03:19]} Be6 {[%emt 0:00:00]} 20. Nd4 {[%emt 0:02:31]} Rc8 {[%emt 0:00:47]} 21. a4 {[%emt 0:11:54]} Bd6 {[%emt 0:02:35]} 22. Rc1 {[%emt 0:10:01]} Be5 {[%emt 0:00:32]} 23. Ne2 {[%emt 0:00:22]} Bd7 {[%emt 0:00:31]} 24. Bc2 {[%emt 0:01:43]} Ra8 {[%emt 0:05:12]} 25. Ra1 {[%emt 0:01:45]} b5 {[%emt 0:00:28]} 26. a5 {[%emt 0:00:24]} b4 {[%emt 0:00:03]} 27. f4 {[%emt 0:04:13]} Bxc3 {[%emt 0:01:20]} 28. Nxc3 {[%emt 0:00:12]} bxc3 {[%emt 0:00:08]} 29. Kf2 {[%emt 0:01:04]} d4 {[%emt 0:14:13]} 30. Bd3 {[%emt 0:10:10]} Bc6 {[%emt 0:01:36]} 31. g3 {[%emt 0:00:51]} Kf8 {[%emt 0:01:40]} 32. Ke2 {[%emt 0:02:20]} Ke7 {[%emt 0:00:30]} 33. a6 {[%emt 0:00:48]} Kd6 {[%emt 0:00:39]} 34. Ra5 {[%emt 0:01:22]} Re8+ {[%emt 0:09:01]} 35. Kd1 {[%emt 0:04:13]} Kc7 {[%emt 0:02:54]} 36. Rf5 {[%emt 0:06:49]} Be4 {[%emt 0:00:43]} 37. Bxe4 {[%emt 0:00:40]} Rxe4 {[%emt 0:00:59]} 38. Rxf6 {[%emt 0:00:23]} d3 {[%emt 0:00:28]} 39. Rxf7+ {[%emt 0:01:32]} Kb8 {[%emt 0:00:51]} 40. a7+ {[%emt 0:01:16]} Ka8 {[%emt 0:00:09]} 41. Rc7 {[%emt 0:15:45]} Re2 {[%emt 0:22:27]} 42. Rxc3 {[%emt 0:01:12]} Kxa7 {[%emt 0:00:06]} 43. h4 {[%emt 0:01:06]} Re3 {[%emt 0:00:08]} 44. g4 {[%emt 0:01:23]} Re4 {[%emt 0:00:08]} 45. Rc7+ {[%emt 0:00:06]} Kb8 {[%emt 0:00:05]} 46. Rf7 {[%emt 0:00:06]} Kc8 {[%emt 0:00:04]} 47. Kd2 {[%emt 0:00:07]} Rd4 {[%emt 0:00:07]} 48. g5 {[%emt 0:00:20]} 1-0

[Event "GER-ch Youth-U12 2022"]
[Site "Willingen"]
[Date "2022.06.08"]
[Round "6.12"]
[White "Sydykov Bayastan"]
[Black "Albrecht, Neil"]
[Result "1-0"]
[ECO "C68"]
[WhiteElo "1477"]
[BlackElo "1376"]
[Annotator "NA RC COMBH"]
[PlyCount "67"]
[EventDate "2022.06.05"]
[EventType "swiss"]
[EventRounds "9"]
[EventCountry "GER"]
[SourceTitle "playchess.com"]
[Source "ChessBase"]
[SourceQuality "1"]
[TimeControl "40/4500+30:900+30"]

1. e4 {[%emt 0:00:00]} e5 {[%emt 0:00:00]} 2. Nf3 {[%emt 0:00:00]} Nc6 {[%emt 0:00:00]} 3. Bb5 {[%emt 0:00:00]} a6 {[%emt 0:00:00]} 4. Bxc6 {[%emt 0:00:00]} dxc6 {[%emt 0:00:00]} 5. O-O {[%emt 0:00:00]} Bg4 {[%emt 0:00:00]} 6. h3 {[%emt 0:00:00]} h5 {[%emt 0:00:00]} 7. d3 {[%emt 0:00:00]} Qf6 {[%emt 0:00:00]} 8. Be3 {[%emt 0:00:00]} Bxf3 {[%emt 0:00:00]} 9. Qxf3 {[%emt 0:00:00]} Qxf3 {[%emt 0:00:00]} 10. gxf3 {[%emt 0:00:00]} O-O-O {[%emt 0:00:00]} 11. f4 {[%emt 0:00:00]} exf4 {[%emt 0:00:00]} 12. Bxf4 {[%emt 0:00:00]} f6 {[%emt 0:00:00]} 13. Nd2 {[%emt 0:00:00]} g5 {[%emt 0:00:00]} 14. Be3 {[%emt 0:00:00]} Bd6 {[%emt 0:00:00]} 15. f3 {[%emt 0:00:00]} Ne7 {[%emt 0:00:00]} 16. Nc4 {[%emt 0:00:45]} Rdg8 {[%emt 0:02:53]} 17. Nxd6+ {[%emt 0:03:41]} cxd6 {[%emt 0:00:31]} 18. Rf2 {[%emt 0:04:10]} g4 {[%emt 0:08:13]} 19. fxg4 {[%emt 0:00:35]} hxg4 {[%emt 0:00:10]} 20. hxg4 {[%emt 0:00:07]} Rxg4+ {[%emt 0:00:09]} 21. Rg2 {[%emt 0:00:14]} Rxg2+ {[%emt 0:02:45]} 22. Kxg2 {[%emt 0:00:12]} f5 {[%emt 0:01:00]} 23. exf5 {[%emt 0:16:01]} Nxf5 {[%emt 0:00:25]} 24. Bf2 {[%emt 0:01:38]} Kd7 {[%emt 0:07:52]} 25. a4 {[%emt 0:19:13]} Re8 {[%emt 0:03:15]} 26. Kf3 {[%emt 0:00:52]} Re6 {[%emt 0:08:04]} 27. Rg1 {[%emt 0:06:18]} Ne7 {[%emt 0:05:08]} 28. Rg7 {[%emt 0:00:55]} Rg6 {[%emt 0:00:31]} 29. Rh7 {[%emt 0:00:50]} Rf6+ {[%emt 0:01:27]} 30. Ke2 {[%emt 0:00:19]} Ke6 {[%emt 0:01:25]} 31. Rh8 {[%emt 0:01:39]} Kd7 {[%emt 0:01:57]} 32. Bb6 {[%emt 0:00:16]} Re6+ {[%emt 0:00:26]} 33. Kd2 {[%emt 0:00:24]} Nc8 {[%emt 0:00:21]} 34. Rd8+ {[%emt 0:00:06]} 1-0

[Event "GER-ch Youth-U12 2022"]
[Site "Willingen"]
[Date "2022.06.08"]
[Round "6.13"]
[White "Pimenov, Danil"]
[Black "Skembris, Simon Max"]
[Result "1/2-1/2"]
[ECO "B33"]
[WhiteElo "1337"]
[BlackElo "1413"]
[Annotator "NA RC COMBH"]
[PlyCount "123"]
[EventDate "2022.06.05"]
[EventType "swiss"]
[EventRounds "9"]
[EventCountry "GER"]
[SourceTitle "playchess.com"]
[Source "ChessBase"]
[SourceQuality "1"]
[TimeControl "40/4500+30:900+30"]

1. e4 {[%emt 0:00:00]} c5 {[%emt 0:00:00]} 2. Nf3 {[%emt 0:00:00]} Nc6 {[%emt 0:00:00]} 3. d4 {[%emt 0:00:00]} cxd4 {[%emt 0:00:00]} 4. Nxd4 {[%emt 0:00:00]} Qb6 {[%emt 0:00:00]} 5. Nb3 {[%emt 0:00:00]} Nf6 {[%emt 0:00:00]} 6. Nc3 {[%emt 0:00:00]} e6 {[%emt 0:00:00]} 7. Be3 {[%emt 0:00:00]} Qc7 {[%emt 0:00:00]} 8. Be2 {[%emt 0:00:00]} Bb4 {[%emt 0:00:00]} 9. f3 {[%emt 0:00:00]} d5 {[%emt 0:00:00]} 10. Qd3 {[%emt 0:00:00]} dxe4 {[%emt 0:00:00]} 11. fxe4 {[%emt 0:00:00]} O-O {[%emt 0:00:00]} 12. O-O {[%emt 0:00:00]} Ne5 {[%emt 0:00:00]} 13. Qb5 {[%emt 0:00:59]} Bxc3 {[%emt 0:03:37]} 14. bxc3 {[%emt 0:00:09]} Bd7 {[%emt 0:03:23]} 15. Qb4 {[%emt 0:01:33]} Bc6 {[%emt 0:08:16]} 16. Bd3 {[%emt 0:02:58]} Nfg4 {[%emt 0:06:36]} 17. Bf4 {[%emt 0:02:34]} a5 {[%emt 0:02:19]} 18. Qc5 {[%emt 0:00:35]} b6 {[%emt 0:00:51]} 19. Bxe5 {[%emt 0:00:10]} Qxe5 {[%emt 0:02:17]} 20. Qxe5 {[%emt 0:01:35]} Nxe5 {[%emt 0:00:55]} 21. Nd4 {[%emt 0:00:20]} Rfd8 {[%emt 0:02:03]} 22. Rab1 {[%emt 0:01:04]} Rab8 {[%emt 0:00:39]} 23. Nxc6 {[%emt 0:00:38]} Nxc6 {[%emt 0:00:09]} 24. Kf2 {[%emt 0:00:50]} Ne5 {[%emt 0:02:04]} 25. Ke3 {[%emt 0:00:15]} g6 {[%emt 0:01:07]} 26. Rb5 {[%emt 0:00:17]} Nd7 {[%emt 0:02:28]} 27. g4 {[%emt 0:10:15]} Rdc8 {[%emt 0:04:08]} 28. c4 {[%emt 0:04:25]} Rc5 {[%emt 0:01:38]} 29. Rfb1 {[%emt 0:03:57]} Rbc8 {[%emt 0:02:11]} 30. Rxc5 {[%emt 0:00:56]} Rxc5 {[%emt 0:00:20]} 31. Rb5 {[%emt 0:01:08]} Rxb5 {[%emt 0:02:43]} 32. cxb5 {[%emt 0:00:09]} f6 {[%emt 0:03:45]} 33. Bc4 {[%emt 0:02:15]} Kf7 {[%emt 0:00:21]} 34. h4 {[%emt 0:00:37]} Ne5 {[%emt 0:02:39]} 35. Be2 {[%emt 0:00:11]} Ke7 {[%emt 0:02:19]} 36. Kd4 {[%emt 0:03:33]} Kd6 {[%emt 0:01:09]} 37. c3 {[%emt 0:05:25]} Nd7 {[%emt 0:02:08]} 38. a3 {[%emt 0:12:12]} e5+ {[%emt 0:03:37]} 39. Ke3 {[%emt 0:01:25]} Kc5 {[%emt 0:02:34]} 40. a4 {[%emt 0:01:37]} Nf8 {[%emt 0:01:01]} 41. Bf1 {[%emt 0:19:40]} Ne6 {[%emt 0:15:38]} 42. Be2 {[%emt 0:00:37]} Nc7 {[%emt 0:00:18]} 43. Kd3 {[%emt 0:01:44]} Ne8 {[%emt 0:00:45]} 44. Bd1 {[%emt 0:01:05]} Nd6 {[%emt 0:04:02]} 45. Bb3 {[%emt 0:03:13]} g5 {[%emt 0:03:23]} 46. h5 {[%emt 0:01:23]} h6 {[%emt 0:00:40]} 47. Bd5 {[%emt 0:00:57]} Ne8 {[%emt 0:00:27]} 48. Bc6 {[%emt 0:01:47]} Nc7 {[%emt 0:00:36]} 49. Kc2 {[%emt 0:03:44]} Ne6 {[%emt 0:01:15]} 50. Bd5 {[%emt 0:01:47]} Nf4 {[%emt 0:00:29]} 51. Bb3 {[%emt 0:00:53]} Nh3 {[%emt 0:02:59]} 52. Be6 {[%emt 0:02:00]} Nf4 {[%emt 0:01:10]} 53. Bb3 {[%emt 0:02:26]} Kd6 {[%emt 0:00:18]} 54. Kd2 {[%emt 0:00:35]} Nh3 {[%emt 0:01:13]} 55. Ke3 {[%emt 0:00:44]} Kc5 {[%emt 0:00:00]} 56. Be6 {[%emt 0:01:10]} Nf4 {[%emt 0:00:27]} 57. Bb3 {[%emt 0:00:26]} Kd6 {[%emt 0:00:25]} 58. Kd2 {[%emt 0:01:09]} Ne6 {[%emt 0:00:27]} 59. Bxe6 {[%emt 0:01:12]} Kxe6 {[%emt 0:00:06]} 60. Kd3 {[%emt 0:00:28]} Kd7 {[%emt 0:00:17]} 61. Ke3 {[%emt 0:01:51]} Kd6 {[%emt 0:00:17]} 62. Ke2 {[%emt 0:00:24]} 1/2-1/2

[Event "GER-ch Youth-U12 2022"]
[Site "Willingen"]
[Date "2022.06.08"]
[Round "6.14"]
[White "Seth, Aakrit"]
[Black "Büchel, David"]
[Result "1-0"]
[ECO "E61"]
[WhiteElo "1435"]
[BlackElo "1527"]
[Annotator "NA RC COMBH"]
[PlyCount "69"]
[EventDate "2022.06.05"]
[EventType "swiss"]
[EventRounds "9"]
[EventCountry "GER"]
[SourceTitle "playchess.com"]
[Source "ChessBase"]
[SourceQuality "1"]
[TimeControl "40/4500+30:900+30"]

1. d4 {[%emt 0:00:00]} Nf6 {[%emt 0:00:00]} 2. Bf4 {[%emt 0:00:00]} g6 {[%emt 0:00:00]} 3. e3 {[%emt 0:00:00]} Bg7 {[%emt 0:00:00]} 4. Nf3 {[%emt 0:00:00]} O-O {[%emt 0:00:00]} 5. h3 {[%emt 0:00:00]} d6 {[%emt 0:00:00]} 6. c4 {[%emt 0:00:00]} Nbd7 {[%emt 0:00:00]} 7. Nc3 {[%emt 0:00:00]} Re8 {[%emt 0:00:00]} 8. Be2 {[%emt 0:00:00]} b6 {[%emt 0:00:00]} 9. O-O {[%emt 0:00:00]} Bb7 {[%emt 0:00:00]} 10. Qc2 {[%emt 0:00:00]} e5 {[%emt 0:00:00]} 11. dxe5 {[%emt 0:00:00]} dxe5 {[%emt 0:00:00]} 12. Bh2 {[%emt 0:00:00]} h6 {[%emt 0:02:25]} 13. Rfd1 {[%emt 0:00:00]} Qe7 {[%emt 0:02:03]} 14. Rd2 {[%emt 0:00:00]} Nh7 {[%emt 0:06:54]} 15. Rad1 {[%emt 0:00:25]} Ndf8 {[%emt 0:06:13]} 16. Nd5 {[%emt 0:01:13]} Bxd5 {[%emt 0:04:49]} 17. cxd5 {[%emt 0:01:01]} Qd7 {[%emt 0:14:53]} 18. Qb3 {[%emt 0:03:38]} a6 {[%emt 0:10:15]} 19. a4 {[%emt 0:05:26]} Kh8 {[%emt 0:02:40]} 20. d6 {[%emt 0:00:53]} c6 {[%emt 0:03:38]} 21. Qxb6 {[%emt 0:01:08]} Reb8 {[%emt 0:01:31]} 22. Qc7 {[%emt 0:00:45]} Qe6 {[%emt 0:00:45]} 23. d7 {[%emt 0:02:43]} Rd8 {[%emt 0:00:54]} 24. Rd6 {[%emt 0:00:41]} Qf5 {[%emt 0:00:59]} 25. Bxa6 {[%emt 0:01:03]} Ne6 {[%emt 0:00:54]} 26. Qxc6 {[%emt 0:00:47]} e4 {[%emt 0:03:09]} 27. R1d5 {[%emt 0:02:11]} Qf6 {[%emt 0:00:30]} 28. Nd4 {[%emt 0:00:35]} Nhf8 {[%emt 0:01:53]} 29. Be5 {[%emt 0:01:29]} Qe7 {[%emt 0:00:40]} 30. Bxg7+ {[%emt 0:03:52]} Nxg7 {[%emt 0:00:35]} 31. Bc8 {[%emt 0:00:34]} Rb8 {[%emt 0:00:17]} 32. b3 {[%emt 0:00:40]} Nf5 {[%emt 0:00:45]} 33. Nxf5 {[%emt 0:00:55]} gxf5 {[%emt 0:00:03]} 34. b4 {[%emt 0:01:21]} Rxb4 {[%emt 0:00:53]} 35. Qc3+ {[%emt 0:00:09]} 1-0

[Event "GER-ch Youth-U12 2022"]
[Site "Willingen"]
[Date "2022.06.08"]
[Round "6.15"]
[White "Uyar, Levin"]
[Black "Bangert, Jonas"]
[Result "0-1"]
[ECO "B27"]
[WhiteElo "1306"]
[BlackElo "1483"]
[Annotator "NA RC COMBH"]
[PlyCount "58"]
[EventDate "2022.06.05"]
[EventType "swiss"]
[EventRounds "9"]
[EventCountry "GER"]
[SourceTitle "playchess.com"]
[Source "ChessBase"]
[SourceQuality "1"]
[TimeControl "40/4500+30:900+30"]

1. e4 {[%emt 0:00:00]} c5 {[%emt 0:00:00]} 2. Nf3 {[%emt 0:00:00]} g6 {[%emt 0:00:00]} 3. d4 {[%emt 0:00:00]} cxd4 {[%emt 0:00:00]} 4. Nxd4 {[%emt 0:00:00]} Nf6 {[%emt 0:00:00]} 5. Nc3 {[%emt 0:00:00]} Bg7 {[%emt 0:00:00]} 6. e5 {[%emt 0:00:00]} Ng8 {[%emt 0:00:00]} 7. Bf4 {[%emt 0:02:46]} f6 {[%emt 0:00:00]} 8. Qe2 {[%emt 0:19:37]} Nc6 {[%emt 0:04:34]} 9. Nxc6 {[%emt 0:11:20]} bxc6 {[%emt 0:00:11]} 10. exf6 {[%emt 0:30:07]} Nxf6 {[%emt 0:00:46]} 11. g3 {[%emt 0:03:27]} O-O {[%emt 0:05:31]} 12. Bg2 {[%emt 0:00:35]} Qb6 {[%emt 0:12:49]} 13. Rb1 {[%emt 0:01:37]} Ba6 {[%emt 0:01:12]} 14. Qe3 {[%emt 0:03:37]} e5 {[%emt 0:12:12]} 15. Qxb6 {[%emt 0:01:07]} axb6 {[%emt 0:00:08]} 16. Be3 {[%emt 0:02:07]} Rab8 {[%emt 0:09:54]} 17. Na4 {[%emt 0:04:50]} d5 {[%emt 0:07:11]} 18. Bxb6 {[%emt 0:01:34]} Bb5 {[%emt 0:00:19]} 19. Bc5 {[%emt 0:00:28]} Bxa4 {[%emt 0:00:24]} 20. Bxf8 {[%emt 0:00:05]} Bxf8 {[%emt 0:06:57]} 21. b3 {[%emt 0:00:24]} Bb4+ {[%emt 0:02:14]} 22. Kd1 {[%emt 0:01:00]} Bc3 {[%emt 0:01:58]} 23. Rc1 {[%emt 0:01:21]} Bb5 {[%emt 0:01:16]} 24. Bf1 {[%emt 0:00:31]} e4 {[%emt 0:04:56]} 25. a4 {[%emt 0:00:14]} Bxf1 {[%emt 0:00:22]} 26. Rxf1 {[%emt 0:00:04]} Ng4 {[%emt 0:02:09]} 27. h3 {[%emt 0:00:30]} Ne5 {[%emt 0:00:06]} 28. Ke2 {[%emt 0:00:25]} Nf3 {[%emt 0:01:03]} 29. Rcd1 {[%emt 0:00:45]} Nd4+ {[%emt 0:04:29]} 0-1